bitfinex/quotes_ETHUSD_20251125
["timestamp","ask_amount","ask_price","bid_price","bid_amount"]
[1764069778687,0.79908628,2894.0,2893.9,0.101]
[1764069778889,0.4766,2894.0,2893.9,0.101]
[1764069779091,0.002,2894.0,2893.9,0.101]
[1764069781329,0.4636,2894.0,2893.9,0.101]
[1764069781627,0.002,2894.0,2893.9,0.5899]
[1764069781831,0.002,2894.0,2893.9,0.4899]
[1764069782140,0.002,2894.0,2893.9,4.50114442]
[1764069784883,0.002,2894.0,2893.9,1.0456]
[1764069785088,0.002,2894.0,2893.9,4.50114442]
[1764069787137,0.002,2894.0,2893.9,4.72014442]
[1764069788796,0.002,2894.0,2893.9,7.817957]
[1764069789194,0.002,2894.0,2893.9,8.94905511]
[1764069792228,0.0012,2894.0,2893.9,8.94905511]
[1764069792403,0.0012,2894.0,2893.9,9.08744066]
[1764069794032,0.0012,2894.0,2893.9,12.97744066]
[1764069800519,0.0012,2894.0,2893.9,12.97613538]
[1764069801653,0.002,2894.3,2894.0,1.13109811]
[1764069801873,0.002,2894.3,2894.2,1.79169811]
[1764069802021,0.002,2894.3,2894.2,0.82559411]
[1764069802220,0.499,2894.3,2894.2,0.45740375]
[1764069802445,0.9741,2894.3,2894.2,0.45740375]
[1764069802651,0.9741,2894.3,2894.2,0.319]
[1764069803449,0.9741,2894.3,2894.2,3.77418623]
[1764069805054,0.9741,2894.3,2894.2,0.319]
[1764069805455,0.9741,2894.3,2894.2,3.77418623]
[1764069807450,0.9741,2894.3,2894.2,0.319]
[1764069808304,0.9741,2894.3,2894.2,3.77418623]
[1764069808588,0.9741,2894.3,2894.2,0.1]
[1764069808806,0.9741,2894.3,2894.2,0.319]
[1764069809463,0.9741,2894.3,2894.2,3.77418623]
[1764069810195,0.9741,2894.3,2894.2,0.1]
[1764069810360,0.9741,2894.3,2894.2,0.319]
[1764069810560,0.9741,2894.3,2894.2,3.77418623]
[1764069811194,0.4771,2894.3,2894.2,3.77418623]
[1764069811390,0.002,2894.3,2894.2,4.26968623]
[1764069811888,0.002,2894.3,2894.2,3.77418623]
[1764069812291,0.4771,2894.3,2894.2,3.77418623]
[1764069816103,0.9741,2894.3,2894.2,3.77418623]
[1764069816395,0.9733,2894.3,2894.2,3.77418623]
[1764069816996,0.4763,2894.3,2894.2,3.77418623]
[1764069819405,0.0012,2894.3,2894.2,3.77418623]
[1764069821097,0.0012,2894.3,2894.2,6.1003362]
[1764069821277,0.0012,2894.3,2894.2,6.5993362]
[1764069822185,0.0012,2894.3,2894.2,7.28082799]
[1764069822510,0.0012,2894.3,2894.2,7.24627613]
[1764069825931,0.002,2894.5,2894.4,3.96045148]
[1764069826238,0.002,2894.5,2894.4,8.31260236]
[1764069826419,0.002,2894.5,2894.4,8.77795289]
[1764069826618,0.002,2894.5,2894.4,8.91631355]
[1764069827415,0.002,2894.6,2894.5,1.23109811]
[1764069827723,0.002,2894.6,2894.5,2.26104639]
[1764069828241,0.002,2894.8,2894.5,9.30905372]
[1764069828443,0.002,2894.8,2894.7,4.82310541]
[1764069828761,0.002,2895.1,2894.7,4.82310541]
[1764069828762,0.002,2895.1,2895.0,0.505504]
[1764069828942,0.002,2895.1,2895.0,5.04210541]
[1764069829098,0.002,2895.1,2895.0,5.54200541]
[1764069829826,0.002,2895.1,2895.0,6.23000541]
[1764069830214,0.002,2895.1,2895.0,9.68423684]
[1764069832133,0.4635,2895.1,2895.0,0.788]
[1764069832430,0.4635,2895.1,2895.0,3.55423143]
[1764069832847,0.4635,2895.1,2895.0,4.27982554]
[1764069833142,0.002,2895.1,2895.0,5.16302954]
[1764069833346,0.4635,2895.1,2895.0,4.68532954]
[1764069834051,0.9284,2895.1,2895.0,4.68532954]
[1764069834452,0.4635,2895.1,2895.0,4.68532954]
[1764069835421,0.9284,2895.1,2895.0,4.68532954]
[1764069836449,0.9284,2895.1,2895.0,5.7229843]
[1764069836639,0.4635,2895.1,2895.0,5.7229843]
[1764069836815,0.002,2895.1,2895.0,6.2006843]
[1764069837438,0.002,2895.1,2895.0,5.7229843]
[1764069838350,0.4956,2895.1,2895.0,5.7229843]
[1764069839354,0.952,2895.1,2895.0,4.49882554]
[1764069840155,0.952,2895.1,2895.0,0.1]
[1764069840156,0.9512,2895.1,2895.0,0.1]
[1764069840356,4.40531212,2895.1,2894.3,3.45496959]
[1764069840560,4.40531212,2895.1,2895.0,0.1]
[1764069840561,3.45531212,2895.1,2895.0,0.1]
[1764069840748,3.94891212,2895.1,2895.0,0.1]
[1764069841134,4.40531212,2895.1,2895.0,0.1]
[1764069841761,7.85942424,2895.1,2894.8,0.1]
[1764069841963,0.4564,2895.0,2894.8,0.1]
[1764069842162,0.4564,2895.0,2894.9,0.1]
[1764069842665,0.95,2895.0,2894.9,0.1]
[1764069842860,4.40423143,2895.0,2894.9,0.1]
[1764069845891,0.95,2895.0,2894.9,0.1]
[1764069846353,0.4936,2895.0,2894.9,0.101]
[1764069846673,0.0012,2895.1,2895.0,0.1]
[1764069846841,0.0012,2895.1,2895.0,0.5611]
[1764069847443,0.0012,2895.1,2895.0,4.01533143]
[1764069847651,0.0012,2895.1,2895.0,4.74092554]
[1764069848478,0.4948,2895.1,2895.0,4.27982554]
[1764069849253,0.9512,2895.1,2895.0,3.77323143]
[1764069851682,0.9512,2895.1,2895.0,0.1]
[1764069853152,0.9512,2895.1,2895.0,0.319]
[1764069853790,0.9512,2895.1,2895.0,0.1]
[1764069860105,0.9512,2895.1,2895.0,3.55423143]
[1764069860322,0.0012,2895.1,2895.0,3.90443143]
[1764069860526,0.0012,2895.1,2895.0,4.00443143]
[1764069860675,0.0012,2895.1,2895.0,4.49683143]
[1764069861185,0.0012,2895.1,2895.0,5.22242554]
[1764069862195,0.0012,2895.1,2895.0,4.73002554]
[1764069862603,0.4834,2895.1,2895.0,4.27982554]
[1764069863194,0.0012,2895.1,2895.0,4.27982554]
[1764069863397,0.0012,2895.1,2895.0,4.73002554]
[1764069863605,0.0012,2895.1,2895.0,7.82594518]
[1764069863817,0.0012,2895.1,2895.0,8.71374918]
[1764069864209,0.0004,2895.1,2895.0,8.71374918]
[1764069864896,0.0004,2895.1,2895.0,8.71474918]
[1764069870736,0.0004,2895.1,2895.0,5.13652954]
[1764069873864,0.0004,2895.1,2895.0,8.74929149]
[1764069874030,0.0004,2895.1,2895.0,8.71474918]
[1764069875061,0.0004,2895.1,2895.0,8.85308592]
[1764069875340,0.002,2895.4,2895.3,6.69734328]
[1764069875537,0.002,2895.4,2895.3,7.88338201]
[1764069875838,0.002,2895.4,2895.3,7.84884328]
[1764069876216,0.002,2895.4,2895.3,4.75292364]
[1764069876421,0.002,2895.4,2895.3,5.51305648]
[1764069876617,0.002,2895.7,2895.6,0.505504]
[1764069876819,0.002,2895.7,2895.6,8.23073342]
[1764069877022,0.002,2895.7,2895.6,8.71303342]
[1764069877798,0.002,2895.7,2895.6,8.90253342]
[1764069881206,0.002,2896.4,2896.3,0.505504]
[1764069881433,0.002,2896.4,2896.3,4.99621775]
[1764069881555,0.002,2896.4,2896.3,2.38259811]
[1764069882877,0.002,2896.4,2896.3,5.83527911]
[1764069884495,0.002,2896.4,2896.3,5.86980592]
[1764069886059,0.002,2897.0,2896.4,1.13109811]
[1764069886356,0.002,2897.0,2896.6,4.05162364]
[1764069886781,0.002,2897.0,2896.6,4.53392364]
[1764069887086,0.002,2897.0,2896.6,8.17834705]
[1764069887281,0.002,2897.0,2896.9,0.505504]
[1764069887484,0.002,2897.0,2896.9,4.99621775]
[1764069887652,0.002,2897.0,2896.9,5.47851775]
[1764069888058,0.002,2897.0,2896.9,5.97091775]
[1764069888262,0.0012,2897.0,2896.9,5.97091775]
[1764069888972,0.0012,2897.0,2896.9,9.42288364]
[1764069889180,0.0012,2897.0,2896.9,8.44818364]
[1764069890294,0.4834,2897.0,2896.9,4.27756]
[1764069890494,0.9643,2897.0,2896.9,4.49656]
[1764069891099,0.4834,2897.0,2896.9,4.49656]
[1764069891793,0.9643,2897.0,2896.9,4.27756]
[1764069892092,0.9643,2897.0,2896.9,4.49656]
[1764069893803,0.9643,2897.0,2896.9,0.1]
[1764069894100,0.9643,2897.0,2896.9,0.319]
[1764069894494,0.9643,2897.0,2896.9,0.1]
[1764069894677,0.9643,2897.0,2895.3,3.93293948]
[1764069894678,7.51206637,2897.0,2896.8,0.1]
[1764069895002,0.6476,2896.9,2896.8,0.1]
[1764069895199,4.28876589,2896.9,2896.8,0.1]
[1764069895409,0.8368,2896.9,2896.8,0.1]
[1764069895997,4.28876589,2896.9,2896.8,0.1]
[1764069896396,4.28876589,2896.9,2896.2,3.45277121]
[1764069896397,4.28876589,2896.9,2896.2,4.17832021]
[1764069896622,0.4809,2896.8,2896.7,0.1]
[1764069896783,3.57681964,2896.8,2896.7,0.1]
[1764069896983,4.03021964,2896.8,2896.7,0.1]
[1764069897184,7.48230469,2896.8,2896.7,0.1]
[1764069902728,4.38638505,2896.8,2896.7,0.1]
[1764069905139,7.49485559,2896.8,2896.6,0.001]
[1764069905337,7.49485559,2896.8,2896.7,0.1]
[1764069905338,7.2735988,2896.8,2896.7,0.1]
[1764069905862,8.2072988,2896.8,2896.6,0.001]
[1764069906023,4.17767916,2896.8,2896.7,0.1]
[1764069906575,5.12393006,2896.8,2896.7,0.1]
[1764069911653,1.67184501,2896.8,2896.7,0.1]
[1764069911949,1.65929411,2896.8,2896.7,0.1]
[1764069912116,1.65849411,2896.8,2896.7,0.1]
[1764069915316,0.9337,2896.8,2896.7,0.1]
[1764069915719,0.4823,2896.8,2896.7,0.1]
[1764069915917,0.9337,2896.8,2896.7,0.1]
[1764069917755,0.0012,2897.0,2896.7,4.0344818]
[1764069918070,0.0012,2897.0,2896.9,3.55196589]
[1764069918373,0.0012,2897.0,2896.9,4.03426589]
[1764069918960,0.0012,2897.0,2896.9,8.01638953]
[1764069920058,0.0012,2897.0,2896.9,8.74198364]
[1764069922566,0.0012,2897.0,2896.9,5.646064]
[1764069923432,0.0012,2897.0,2896.9,5.165364]
[1764069923632,0.0012,2897.0,2896.9,4.683064]
[1764069923834,0.0012,2897.0,2896.9,5.133564]
[1764069926245,0.0012,2897.0,2896.9,5.600964]
[1764069927348,0.0012,2897.0,2896.9,5.352564]
[1764069928993,0.0012,2897.0,2896.9,4.00246589]
[1764069929149,0.9287,2897.0,2896.9,0.319]
[1764069929579,0.4705,2897.0,2896.9,0.319]
[1764069930480,0.0012,2897.0,2896.9,0.7695]
[1764069931150,0.0012,2897.0,2896.9,4.22146589]
[1764069931346,0.4705,2897.0,2896.9,3.06849964]
[1764069931591,0.0012,2897.0,2896.9,3.38749964]
[1764069931982,0.9287,2897.0,2896.9,0.319]
[1764069932446,0.9287,2897.0,2896.9,3.77096589]
[1764069935485,0.9287,2897.0,2896.9,3.55196589]
[1764069935686,0.4705,2897.0,2896.9,3.77096589]
[1764069936183,0.4697,2897.0,2896.9,3.77096589]
[1764069936686,0.9279,2897.0,2896.9,3.77096589]
[1764069937265,0.9279,2897.0,2896.9,3.55196589]
[1764069937466,0.9279,2897.0,2896.9,3.77096589]
[1764069938296,0.0004,2897.0,2896.9,4.88157965]
[1764069938588,0.0004,2897.0,2896.9,5.41446]
[1764069938800,0.0004,2897.0,2896.9,4.22146589]
[1764069941273,0.0004,2897.0,2896.9,4.46986589]
[1764069941481,0.0004,2897.0,2896.9,4.68886589]
[1764069943917,0.0004,2897.0,2896.9,4.22146589]
[1764069945485,0.0004,2897.0,2896.9,4.00246589]
[1764069945694,0.0004,2897.0,2896.9,4.22146589]
[1764069945881,0.0004,2897.0,2896.9,4.46986589]
[1764069946205,0.0004,2897.0,2896.9,4.68886589]
[1764069946800,0.0004,2897.0,2896.9,4.22146589]
[1764069947499,0.4697,2897.0,2896.9,3.55196589]
[1764069947703,0.9279,2897.0,2896.9,3.77096589]
[1764069948010,0.9279,2897.0,2896.9,3.55196589]
[1764069948314,0.9279,2897.0,2896.9,3.77096589]
[1764069956324,0.9279,2897.0,2896.9,3.77196589]
[1764069958927,0.9279,2897.0,2896.9,4.49756]
[1764069959245,0.4697,2897.0,2896.9,4.49756]
[1764069959840,0.0004,2897.0,2896.9,4.49756]
[1764069960368,0.5013,2897.1,2897.0,0.82559411]
[1764069960828,0.9993,2897.1,2897.0,1.04459411]
[1764069963049,0.9993,2897.1,2897.0,3.77084673]
[1764069963050,0.4996,2897.1,2897.0,3.77084673]
[1764069963214,0.9993,2897.1,2897.0,3.77084673]
[1764069963537,0.4996,2897.1,2897.0,3.77084673]
[1764069964034,0.9993,2897.1,2897.0,3.77084673]
[1764069965141,0.4996,2897.1,2897.0,3.77084673]
[1764069965648,0.9993,2897.1,2897.0,3.77084673]
[1764069965813,0.4996,2897.1,2897.0,3.77084673]
[1764069966021,0.0016,2897.1,2897.0,4.26344673]
[1764069966442,0.0016,2897.1,2897.0,3.77084673]
[1764069966641,0.4996,2897.1,2897.0,3.77084673]
[1764069966857,0.0016,2897.1,2897.0,4.75174673]
[1764069969054,0.0016,2897.1,2897.0,8.28258712]
[1764069969257,0.0016,2897.1,2897.0,8.24806866]
[1764069969858,0.0016,2897.1,2897.0,5.15725073]
[1764069970030,0.0016,2897.1,2897.0,5.19176919]
[1764069972278,0.0016,2897.1,2897.0,9.08176919]
[1764069972477,0.0016,2897.1,2897.0,9.04725073]
[1764069972865,0.0016,2897.1,2897.0,12.13806866]
[1764069974246,0.0016,2897.1,2897.0,12.13906866]
[1764069981303,0.0016,2897.1,2897.0,9.04825073]
[1764069983280,0.0016,2897.1,2897.0,9.1864971]
[1764069984304,0.0008,2897.1,2897.0,9.1864971]
[1764069984671,0.0008,2897.1,2897.0,12.27739453]
[1764069992072,0.959,2897.1,2897.0,7.9865971]
[1764069992270,0.959,2897.1,2897.0,8.2045971]
[1764069993205,0.959,2897.1,2897.0,7.5810931]
[1764069993383,0.959,2897.1,2897.0,4.12924637]
[1764069993587,0.959,2897.1,2897.0,7.66084673]
[1764069994984,0.0008,2897.1,2897.0,7.66084673]
[1764069995195,0.0008,2897.1,2897.0,4.64765073]
[1764069995393,0.0008,2897.1,2897.0,5.31331556]
[1764069997579,0.0008,2897.1,2897.0,6.00439121]
[1764069999718,0.0008,2897.1,2897.0,9.30439121]
[1764070001123,0.0008,2897.1,2897.0,8.81149121]
[1764070001284,0.0008,2897.1,2897.0,9.30439121]
[1764070001482,0.0008,2897.1,2897.0,8.81149121]
[1764070003339,0.0008,2897.1,2897.0,9.30439121]
[1764070004550,0.0008,2897.1,2897.0,16.28528864]
[1764070006314,0.4598,2897.1,2897.0,7.71668721]
[1764070006639,0.959,2897.1,2897.0,3.55284673]
[1764070006841,0.959,2897.1,2897.0,0.101]
[1764070007208,0.959,2897.1,2897.0,3.55284673]
[1764070008338,0.9582,2897.1,2897.0,3.55284673]
[1764070009144,0.002,2897.3,2897.2,3.55160844]
[1764070009310,0.5012,2897.3,2897.2,3.55160844]
[1764070009513,0.9602,2897.3,2897.2,3.55160844]
[1764070015050,0.9602,2897.3,2897.2,0.1]
[1764070016442,0.9602,2897.3,2897.2,3.55160844]
[1764070018252,0.925,2897.3,2897.2,3.55160844]
[1764070018591,0.925,2897.3,2897.2,0.1]
[1764070019581,0.925,2897.3,2897.2,3.55160844]
[1764070020494,0.461,2897.3,2897.2,3.55160844]
[1764070021206,0.002,2897.3,2897.2,4.02990844]
[1764070021374,0.4524,2897.3,2897.2,3.55160844]
[1764070021775,0.9164,2897.3,2897.2,3.55160844]
[1764070026812,0.4524,2897.3,2897.2,3.55160844]
[1764070027019,0.9164,2897.3,2897.2,3.55160844]
[1764070029602,0.4524,2897.3,2897.2,3.55160844]
[1764070029996,0.002,2897.3,2897.2,4.02990844]
[1764070030721,0.002,2897.3,2897.2,3.55160844]
[1764070030921,0.4524,2897.3,2897.2,3.55160844]
[1764070032121,0.4516,2897.3,2897.2,3.55160844]
[1764070032715,0.9156,2897.3,2897.2,3.55160844]
[1764070033807,0.4516,2897.3,2897.2,3.55160844]
[1764070034333,0.9156,2897.3,2897.2,3.55160844]
[1764070036833,0.0012,2897.3,2897.2,4.02990844]
[1764070037557,0.0012,2897.3,2897.2,3.55160844]
[1764070037730,0.4516,2897.3,2897.2,3.55160844]
[1764070038657,0.9156,2897.3,2897.2,3.55160844]
[1764070045276,0.9156,2897.3,2897.2,0.1]
[1764070045475,0.9156,2897.3,2897.2,3.55160844]
[1764070045836,0.9156,2897.3,2897.2,0.1]
[1764070047296,0.9156,2897.3,2897.2,3.55160844]
[1764070047698,0.0012,2897.3,2897.2,4.01000844]
[1764070051200,0.0012,2897.3,2897.2,4.50720844]
[1764070051507,0.0012,2897.3,2897.2,4.64545911]
[1764070052099,0.0012,2897.3,2897.2,4.01000844]
[1764070056414,0.0004,2897.3,2897.2,4.01000844]
[1764070062928,0.0004,2897.3,2897.2,5.63830655]
[1764070063087,0.0004,2897.3,2897.2,5.67282263]
[1764070063288,0.0004,2897.3,2897.2,5.81105467]
[1764070063723,0.0004,2897.3,2897.2,9.70105467]
[1764070063910,0.0004,2897.3,2897.2,9.66653859]
[1764070064692,0.0004,2897.3,2897.2,12.96653859]
[1764070075943,0.0004,2897.3,2897.2,9.07653859]
[1764070080319,0.0016,2897.4,2897.3,0.859904]
[1764070080521,0.0016,2897.4,2897.3,0.505504]
[1764070080712,0.965,2897.4,2897.3,0.723504]
[1764070080929,0.965,2897.4,2897.3,0.86173461]
[1764070081618,0.965,2897.4,2897.3,0.96382472]
[1764070081825,0.965,2897.4,2897.3,4.41531403]
[1764070082127,0.965,2897.4,2897.3,3.76948931]
[1764070083462,0.965,2897.4,2897.3,3.55148931]
[1764070083645,0.965,2897.4,2897.1,3.4526888]
[1764070083646,0.965,2897.4,2897.2,3.45159803]
[1764070083955,0.0016,2897.4,2897.3,0.1]
[1764070084132,0.4843,2897.4,2897.3,0.1]
[1764070084532,0.965,2897.4,2897.3,0.1]
[1764070085858,0.965,2897.4,2897.3,3.55148931]
[1764070089858,0.965,2897.4,2897.3,3.12463963]
[1764070090555,0.965,2897.4,2897.3,0.1]
[1764070094387,0.965,2897.4,2897.1,0.001]
[1764070094562,0.0016,2897.4,2897.3,0.1]
[1764070094877,0.0141509,2897.4,2897.3,0.1]
[1764070095081,0.4968509,2897.4,2897.3,0.1]
[1764070095277,0.9775509,2897.4,2897.3,0.1]
[1764070100197,0.965,2897.4,2897.3,0.1]
[1764070104198,0.9642,2897.4,2897.3,0.1]
[1764070108001,0.4835,2897.4,2897.3,0.1]
[1764070108172,0.9425,2897.4,2897.3,0.1]
[1764070109273,0.4835,2897.4,2897.3,3.55148931]
[1764070109490,0.9425,2897.4,2897.3,3.55148931]
[1764070111285,0.4835,2897.4,2897.3,3.55148931]
[1764070111669,0.9425,2897.4,2897.3,3.55148931]
[1764070112102,0.9425,2897.4,2897.3,0.1]
[1764070112910,0.9425,2897.4,2897.3,3.55248931]
[1764070114918,0.9425,2897.4,2897.3,0.101]
[1764070115621,0.9425,2897.4,2897.3,3.55248931]
[1764070116414,0.9425,2897.4,2897.3,0.101]
[1764070116924,0.9425,2897.4,2897.3,3.55248931]
[1764070117109,0.4835,2897.4,2897.3,3.55248931]
[1764070120726,0.0008,2897.4,2897.3,3.55248931]
[1764070122425,0.0008,2897.4,2897.3,4.04888931]
[1764070123327,0.4732,2897.4,2897.3,3.55248931]
[1764070123934,0.9322,2897.4,2897.3,0.101]
[1764070124499,0.9447509,2897.4,2897.3,0.101]
[1764070125134,0.9322,2897.4,2897.3,0.101]
[1764070125329,0.9447509,2897.4,2897.3,0.101]
[1764070125530,0.9322,2897.4,2897.3,0.101]
[1764070128365,0.9314,2897.4,2897.3,0.101]
[1764070130534,0.9334,2897.4,2897.3,0.101]
[1764070138151,7.81259212,2897.4,2897.3,0.001]
[1764070138461,9.27031322,2897.4,2897.3,0.001]
[1764070138850,9.40862556,2897.4,2897.3,0.001]
[1764070139285,9.40825998,2897.4,2897.3,0.001]
[1764070140985,2.72653649,2897.4,2897.3,0.101]
[1764070141155,2.94453649,2897.4,2897.3,0.101]
[1764070141350,0.002,2897.4,2897.3,0.5745]
[1764070141647,0.002,2897.4,2897.3,1.0278]
[1764070142767,0.002,2897.4,2897.3,4.47928931]
[1764070143449,0.002,2897.4,2897.3,4.02598931]
[1764070146593,0.4787,2897.4,2897.3,3.55248931]
[1764070146804,0.9411,2897.4,2897.3,3.55248931]
[1764070146959,0.4787,2897.4,2897.3,3.55248931]
[1764070147297,0.002,2897.4,2897.3,3.55248931]
[1764070147497,0.002,2897.4,2897.3,4.02598931]
[1764070152147,0.0012,2897.4,2897.3,4.02598931]
[1764070152442,0.0012,2897.4,2897.3,4.02238316]
[1764070153104,0.0012,2897.4,2897.3,0.57089385]
[1764070154636,0.4779,2897.4,2897.3,0.09739385]
[1764070157446,0.9403,2897.4,2897.3,0.09739385]
[1764070157736,3.94182109,2897.4,2897.3,0.09739385]
[1764070157939,4.40422109,2897.4,2897.3,0.09739385]
[1764070158111,0.9403,2897.4,2897.3,0.09739385]
[1764070163819,0.9403,2897.4,2897.3,0.09839385]
[1764070164013,0.0012,2897.4,2897.3,1.08229385]
[1764070164252,0.0012,2897.4,2897.3,4.53378316]
[1764070164750,0.0012,2897.4,2897.3,4.04378316]
[1764070165248,0.0012,2897.4,2897.3,0.59229385]
[1764070167556,0.4811,2897.4,2897.3,0.09839385]
[1764070169447,0.9434,2897.4,2897.3,0.09839385]
[1764070174776,0.0012,2897.4,2897.3,0.59229385]
[1764070176172,0.0004,2897.4,2897.3,0.59229385]
[1764070177790,0.0004,2897.4,2897.3,0.09839385]
[1764070177991,0.4803,2897.4,2897.3,0.09839385]
[1764070180105,0.9426,2897.4,2897.3,0.09839385]
[1764070180705,1.26624026,2897.4,2897.3,0.09839385]
[1764070181205,4.71761045,2897.4,2897.3,0.001]
[1764070181502,4.73016135,2897.4,2897.3,0.09839385]
[1764070182207,1.27879116,2897.4,2897.3,0.09839385]
[1764070184076,1.26624026,2897.4,2897.3,0.09839385]
[1764070185011,0.80394026,2897.4,2897.3,0.09839385]
[1764070186307,1.26624026,2897.4,2897.3,0.09839385]
[1764070187006,1.26624026,2897.4,2896.9,0.491]
[1764070187208,0.9426,2897.4,2897.3,0.1]
[1764070187404,1.26635757,2897.4,2897.3,0.1]
[1764070189512,0.32415757,2897.4,2897.3,0.5939]
[1764070189922,0.32413194,2897.4,2897.3,0.5939]
[1764070192419,0.32413194,2897.4,2897.3,0.1]
[1764070193520,0.32413194,2897.4,2897.3,0.5832]
[1764070199702,0.77873194,2897.4,2897.3,0.1]
[1764070200016,1.25253194,2897.4,2897.3,0.1]
[1764070200185,4.71565303,2897.4,2897.3,0.1]
[1764070200841,1.26428284,2897.4,2897.2,0.1]
[1764070200994,3.46392109,2897.4,2897.3,0.1]
[1764070201394,3.91852109,2897.4,2897.3,0.1]
[1764070201618,4.39232109,2897.4,2897.3,0.1]
[1764070202619,4.61032109,2897.4,2897.3,0.1]
[1764070204742,0.72559411,2897.3,2897.0,0.001]
[1764070205041,4.02199642,2897.1,2897.0,0.001]
[1764070205202,8.23147375,2897.1,2897.0,0.001]
[1764070205407,8.69272285,2897.1,2897.0,0.001]
[1764070206312,7.947524,2897.1,2897.0,0.001]
[1764070210744,4.85572169,2897.1,2897.0,0.001]
[1764070210948,0.13832191,2897.4,2897.0,0.501]
[1764070211130,0.218,2897.4,2897.3,0.1]
[1764070211314,0.2305509,2897.4,2897.3,0.1]
[1764070212170,0.55320789,2897.4,2897.3,0.1]
[1764070212377,4.00457808,2897.4,2897.3,0.1]
[1764070213056,0.55320789,2897.4,2897.3,0.6]
[1764070213251,1.00780789,2897.4,2897.3,0.1]
[1764070213460,4.45917808,2897.4,2897.3,0.1]
[1764070213665,4.93297808,2897.4,2897.3,0.1]
[1764070214342,4.93297808,2897.4,2897.3,0.101]
[1764070214558,4.93497808,2897.4,2897.3,0.101]
[1764070215459,4.92242718,2897.4,2897.3,0.101]
[1764070216443,4.44862718,2897.4,2897.3,0.101]
[1764070216851,4.92242718,2897.4,2897.3,0.101]
[1764070219244,0.54265699,2897.4,2897.3,0.601]
[1764070219439,0.54265699,2897.4,2897.3,1.0835]
[1764070220453,0.54293771,2897.4,2897.3,0.601]
[1764070221171,3.9943079,2897.4,2897.3,0.601]
[1764070221690,4.9552079,2897.4,2897.3,0.101]
[1764070221859,4.9677588,2897.4,2897.3,0.101]
[1764070223427,4.9552079,2897.4,2897.3,0.101]
[1764070223577,4.4601079,2897.4,2897.3,0.101]
[1764070223749,4.9677588,2897.4,2897.3,0.101]
[1764070224277,4.9669588,2897.4,2897.3,0.101]
[1764070224848,4.9669588,2897.4,2897.3,0.001]
[1764070225570,3.9935079,2897.4,2897.3,0.5831]
[1764070226585,4.4593079,2897.4,2897.3,0.101]
[1764070226754,4.9669588,2897.4,2897.3,0.001]
[1764070227080,4.96711962,2897.4,2897.3,0.101]
[1764070228273,4.96711962,2897.4,2897.3,0.001]
[1764070228464,6.43719074,2897.4,2897.3,0.001]
[1764070228660,9.53092118,2897.4,2897.3,0.001]
[1764070228974,9.51837028,2897.4,2897.3,0.001]
[1764070248337,9.51757028,2897.4,2897.3,0.001]
[1764070253623,10.44706859,2897.4,2897.3,0.001]
[1764070257435,9.51757028,2897.4,2897.3,0.001]
[1764070258151,8.55667028,2897.4,2897.3,0.4665]
[1764070258349,9.48616859,2897.4,2897.3,0.4665]
[1764070258750,9.48616859,2897.4,2897.3,0.001]
[1764070259093,8.55827028,2897.4,2897.3,0.4665]
[1764070259375,8.55827028,2897.4,2897.3,0.001]
[1764070259884,9.02947028,2897.4,2897.3,0.001]
[1764070260552,9.48897028,2897.4,2897.3,0.001]
[1764070260867,8.55827028,2897.4,2897.3,0.4665]
[1764070261047,9.02947028,2897.4,2897.3,0.001]
[1764070262470,9.48897028,2897.4,2897.3,0.001]
[1764070262870,10.41846859,2897.4,2897.3,0.001]
[1764070264775,8.55827028,2897.4,2897.3,0.4665]
[1764070265365,8.55827028,2897.4,2897.3,0.001]
[1764070266543,8.55827028,2897.4,2897.3,0.4665]
[1764070266872,9.95896859,2897.4,2897.3,0.001]
[1764070267078,9.48897028,2897.4,2897.3,0.001]
[1764070267977,9.89447428,2897.4,2897.3,0.001]
[1764070268277,11.26814734,2897.4,2897.3,0.001]
[1764070272151,14.36107778,2897.4,2897.3,0.001]
[1764070272351,13.12573285,2897.4,2897.3,0.001]
[1764070272548,23.66647323,2897.4,2897.0,0.001]
[1764070272788,5.35820086,2897.1,2897.0,0.001]
[1764070273085,6.4383273,2897.1,2897.0,0.001]
[1764070273383,6.10499412,2897.1,2897.0,0.001]
[1764070273880,9.18617366,2897.1,2897.0,0.001]
[1764070274084,9.18617366,2897.1,2896.9,0.001]
[1764070274085,1.13109811,2897.0,2896.9,0.001]
[1764070274255,4.58623673,2897.0,2896.9,0.001]
[1764070274460,1.13109811,2896.8,2896.6,0.001]
[1764070274667,3.91070617,2896.8,2896.6,0.001]
[1764070274872,3.12952455,2896.8,2896.6,0.001]
[1764070275154,10.47309284,2896.8,2896.3,0.001]
[1764070275372,9.16781594,2896.6,2896.3,0.001]
[1764070275574,10.45339148,2896.6,2896.3,0.001]
[1764070275877,10.91289148,2896.6,2896.3,0.001]
[1764070276099,7.27489148,2896.6,2896.3,0.001]
[1764070276297,12.36365394,2896.6,2896.3,0.001]
[1764070276500,12.58165394,2896.6,2896.3,0.001]
[1764070277077,12.58102197,2896.6,2896.3,0.001]
[1764070277308,9.48729153,2896.6,2896.3,0.001]
[1764070279401,10.41565705,2896.6,2896.3,0.001]
[1764070280416,10.55403542,2896.6,2896.3,0.001]
[1764070281113,9.1004739,2896.6,2896.5,0.4769]
[1764070281324,10.0490739,2896.6,2896.5,0.001]
[1764070284013,9.1004739,2896.6,2896.5,0.4769]
[1764070287340,8.8824739,2896.6,2896.5,0.4769]
[1764070287522,9.1004739,2896.6,2896.5,0.4769]
[1764070290628,9.58781271,2896.6,2896.5,0.001]
[1764070291218,10.05071271,2896.6,2896.5,0.001]
[1764070293621,13.68871271,2896.6,2896.5,0.001]
[1764070294035,14.61707823,2896.6,2896.5,0.001]